Cogmind - Beta 15 @@@ ROGUE MODE // 2025.08.11 @ 19:31:58 Player: Dadrick Result: Escaped! Performance ------------- Evolutions (9) 4500 Regions Visited (22) 4400 Robots Destroyed (321) 1605 Value Destroyed (11941) 11941 Prototype IDs (70) 1400 Alien Tech Used (2) 400 Bonus (5763) 5763 TOTAL SCORE: 30009 Bonus ------- High Alert Combat Kills 559 Follower Combat Kills 1327 Aligned with FarCom 300 Met Zhirov 300 Read Decrypted Archives 300 Win 3000 Friendly Fire -23 Cogmind --------- Core Integrity 1523/1600 Matter 126/300 Energy 99/100 System Corruption 0% Temperature Cool (0) Movement Core (100) Ox1 Location To Epsilon Eridani Parts ------- > --- POWER (3) -------- (None) > --- PROPULSION (7) --- Heavy Siege Treads Heavy Siege Treads Improved Heavy Siege Treads Centrium Leg > --- UTILITY (11) ----- Advanced Terrain Scan Processor 01-MTF's Autohacker > --- WEAPON (4) ------- Nanosword > --- INVENTORY (5) ---- Light Quantum Reactor Enhanced Quantum Rifle Enhanced Nova Cannon Railgun Peak State ------------ > --- POWER ------------ Micro Antimatter Reactor Light Quantum Reactor Light Quantum Reactor > --- PROPULSION ------- Thunder Leg Myomer Leg Myomer Leg Myomer Leg Myomer Leg Myomer Leg > --- UTILITY ---------- Advanced Heat Sink High-capacity Storage Unit Superbattery Advanced Target Analyzer Improved Transmission Jammer Improved Reaction Control System Improved Reaction Control System Centrium Medium Armor Plating Centrium Medium Armor Plating Hacking Suite > --- WEAPON ----------- Compact HERF Cannon Hardcell Cannon Compact Mass Driver Nanosword > --- INVENTORY -------- Light Quantum Reactor Light Quantum Reactor Myomer Leg Myomer Leg Advanced Heat Sink Energy Well Advanced Target Analyzer Precision Matter Filter Improved Reaction Control System Point Defense System 01-MTF's Autohacker Advanced Component Analysis Suite Heavy Disruptor Cannon Compact HERF Cannon Enhanced Nova Cannon Railgun Advanced Datajack Improved Plasma Cutter Enhanced Force Lance [Rating: 174] Favorites ----------- Power Light Nuclear Core Engine Deuterium Engine Power Core Light Nuclear Core Reactor Quantum Reactor Propulsion Light Treads Treads Light Treads Leg Myomer Leg Wheel Wheel Hover Unit Cooled Airjet Flight Unit Cooled VTOL Module Utility Improved Melee Analysis Suite Device Improved Transmission Jammer Storage High-capacity Storage Unit Processor Improved Melee Analysis Suite Hackware Hacking Suite Protection Centrium Medium Armor Plating Weapon Mini Assault Cannon Energy Gun Advanced Variable Charge Gun Energy Cannon Compact HERF Cannon Ballistic Gun Heavy Assault Rifle Ballistic Cannon Mini Assault Cannon Launcher Guided EMP Blaster Special Weapon Mining Laser Impact Weapon Heavy Flail Slashing Weapon Scythe Piercing Weapon Lance Special Melee Weapon Advanced Datajack Build | -11 -10 -10 -10 -9 -8 -7 -7 -7 -7 -5 -5 -5 -5 -4 -4 -4 -4 -4 -4 -3 -2 -1 ------- Run | Yrd Mat Min Exi Min Mat Fac Sto Rec Scr Fac Upp Upp Zhi Pro Fac Ext Cet Arc Hub Res Res Acc Slots Evolved 18 | . . . . . 4 2 . . . 4 . . . . 2 . . . . 2 2 2 Power 2 | . . . . . . . . . . 1 . . . . . . . . . . 1 . Propulsion 5 | . . . . . 1 1 . . . 1 . . . . 1 . . . . . . 1 Utility 9 | . . . . . 1 1 . . . 2 . . . . 1 . . . . 2 1 1 Weapon 2 | . . . . . 2 . . . . . . . . . . . . . . . . . Parts Attached 281 | 7 6 2 . 2 24 26 20 4 16 43 4 2 3 1 7 32 14 3 . 41 17 7 Power 36 | 1 . 1 . . 2 3 2 . 1 5 . . . 1 1 6 3 1 . 6 3 . Engine 8 | 1 . 1 . . . 2 2 . . 1 . . . . 1 . . . . . . . Core 14 | . . . . . 2 1 . . 1 4 . . . 1 . 4 1 . . . . . Reactor 14 | . . . . . . . . . . . . . . . . 2 2 1 . 6 3 . Propulsion 89 | 2 . 1 . . 9 8 7 3 6 13 . . 1 . 4 10 3 1 . 12 5 4 Treads 39 | 2 . 1 . . 6 4 2 3 1 3 . . . . . 8 3 1 . 2 1 2 Leg 16 | . . . . . 3 1 2 . . . . . . . . . . . . 5 4 1 Wheel 13 | . . . . . . 1 2 . . 4 . . . . . . . . . 5 . 1 Hover 20 | . . . . . . 2 1 . 4 6 . . 1 . 4 2 . . . . . . Flight 1 | . . . . . . . . . 1 . . . . . . . . . . . . . Utility 89 | 2 2 . . 1 7 5 6 1 4 18 4 2 2 . . 9 4 . . 13 6 3 Device 38 | 1 . . . . 2 3 1 . 1 9 2 2 . . . 2 1 . . 8 6 . Storage 10 | 1 1 . . . 1 2 1 . 1 . . . . . . 2 . . . . . 1 Processor 10 | . . . . . . . 1 . 1 4 1 . . . . . . . . 2 . 1 Hackware 6 | . . . . . . . . . . 4 . . 1 . . . . . . 1 . . Protection 25 | . 1 . . 1 4 . 3 1 1 1 1 . 1 . . 5 3 . . 2 . 1 Artifact . | . . . . . . . . . . . . . . . . . . . . . . . Weapon 67 | 2 4 . . 1 6 10 5 . 5 7 . . . . 2 7 4 1 . 10 3 . Energy Gun 8 | 1 . . . . 1 2 . . . . . . . . . . 1 1 . 2 . . Energy Cannon 6 | . . . . . . 1 . . 1 . . . . . . 1 . . . 3 . . Ballistic Gun 18 | 1 3 . . 1 3 . 2 . . . . . . . . 3 2 . . 3 . . Ballistic Cannon 15 | . . . . . . 5 2 . 2 2 . . . . 1 . . . . 1 2 . Launcher 5 | . . . . . 1 1 . . 2 . . . . . . 1 . . . . . . Special Weapon 2 | . 1 . . . . . . . . . . . . . . . 1 . . . . . Impact Weapon 3 | . . . . . . . 1 . . . . . . . 1 1 . . . . . . Slashing Weapon 4 | . . . . . 1 . . . . 2 . . . . . . . . . . 1 . Piercing Weapon 4 | . . . . . . . . . . 3 . . . . . . . . . 1 . . Special Melee Weapon 2 | . . . . . . 1 . . . . . . . . . 1 . . . . . . Unidentified Prototypes 21 | . . . . . . 1 3 . 5 1 . . 3 . 1 . 3 . . 1 2 1 Corrupted Parts 10 | . . . . . . . . . . . . . . . . . 1 3 . 6 . . System Corruption 55 | . . . . . . . . . . . . . . . . . 3 16 . 36 . . Parts Lost 119 | . 1 . . . 16 2 13 1 . 19 . . . 2 1 13 12 3 1 18 17 . Power 19 | . . . . . 2 . 1 . . 3 . . . 2 . 2 2 . 1 4 2 . Propulsion 37 | . . . . . 2 1 3 1 . 7 . . . . 1 4 6 1 . 5 6 . Utility 35 | . . . . . 5 1 5 . . 6 . . . . . 4 2 . . 3 9 . Weapon 28 | . 1 . . . 7 . 4 . . 3 . . . . . 3 2 2 . 6 . . Highest Loss Streak 15 | . 1 . . . 5 1 8 1 . 15 . . . 2 1 3 12 3 1 5 8 . To Critical Strikes 1 | . . . . . 1 . . . . . . . . . . . . . . . . . Average Backups 15 | 2 12 13 13 14 15 7 13 23 21 17 18 17 16 16 16 17 16 18 17 17 16 4 Power 1 | . 2 1 1 1 . 1 1 2 1 . 1 1 1 . . 1 1 2 3 1 1 1 Propulsion 2 | . 1 2 2 2 1 . 2 7 6 1 3 3 3 3 2 . . 1 . 2 . . Utility 5 | . 3 4 4 5 7 2 3 4 5 6 7 7 6 6 5 6 5 6 7 7 7 . Weapon 4 | 1 5 6 6 6 4 2 5 8 5 4 1 2 2 2 3 4 4 5 3 3 3 2 Tool/Special . | . . . . . . . . . . . . . . . . . . . . . . . Unused Backups 61 | . 1 . . . 15 5 4 . 2 2 2 . . . . 4 3 . . 8 12 3 Power 12 | . . . . . 3 1 . . . . 1 . . . . 1 1 . . 2 2 1 Propulsion 7 | . 1 . . . 5 . 1 . . . . . . . . . . . . . . . Utility 24 | . . . . . 6 1 1 . . 2 1 . . . . 2 1 . . 4 6 . Weapon 17 | . . . . . 1 3 2 . 2 . . . . . . 1 1 . . 2 3 2 Tool/Special 1 | . . . . . . . . . . . . . . . . . . . . . 1 . Average Slot Usage (%) 90 | . 99 100 100 100 94 80 78 91 97 90 92 94 93 88 92 97 82 75 84 89 86 21 Engine 3 | . 14 14 14 14 2 5 4 7 . 2 5 5 4 . 1 . . . . . . . Core 3 | . . . . . 6 . 1 . 6 7 5 5 5 4 5 6 1 . . . . . Reactor 1 | . . . . . . . . . . . . . . . . 2 8 10 10 8 10 . Treads 12 | . 28 28 28 28 14 18 6 20 25 1 . . . . . 7 17 14 15 13 . 10 Leg 2 | . . . . . 11 1 4 . . . . . . . . . . . . . 22 3 Wheel 2 | . . . . . . . 11 9 . 4 . . . . . . . . . 5 . . Hover 8 | . . . . . . 5 1 . 3 20 23 23 23 23 27 22 . . . . . . Device 7 | . 12 14 14 . 6 10 2 . . 5 4 4 4 4 12 10 7 10 12 16 16 . Storage 7 | . 14 14 14 14 8 10 7 7 7 5 5 5 5 5 5 5 7 5 5 5 7 . Processor 4 | . . . . . . . 2 7 14 9 10 11 11 11 7 2 . . . 3 3 2 Hackware 4 | . . . . . . . . . . 8 11 11 11 11 10 10 10 10 10 6 3 . Protection 4 | . 1 . . 14 9 . 5 6 6 . . . . . . 6 9 10 7 6 4 . Energy Gun 1 | . 3 . . . 2 2 . . . . . . . . . . . . 10 6 . . Ballistic Gun 6 | . 23 28 28 27 30 . 1 . . . . . . . . 2 12 7 5 7 5 . Ballistic Cannon 5 | . . . . . . 13 9 15 14 3 4 5 5 5 5 3 1 . . . 4 . Impact Weapon 3 | . . . . . . . 6 7 7 4 5 5 5 5 4 4 2 5 5 . . . Slashing Weapon 3 | . . . . . . 7 7 7 7 3 4 5 5 5 5 1 . . . . . 3 Piercing Weapon 2 | . . . . . . . . . . 7 5 5 5 5 5 4 . . . 1 . . Peak Build Rating 174 | 7 11 10 11 12 24 43 51 47 60 89 84 82 87 87 108 116 150 150 153 169 174 76 Average Rating 70 | 6 9 10 10 11 19 34 37 46 47 72 79 81 83 82 101 105 123 131 150 153 150 64 On Entrance 64 | . 7 10 10 11 12 4 42 47 42 60 84 81 82 87 83 108 94 144 150 141 152 28 Naked Turns 36 | . . . . . 20 . . . . . . . . . . . . . . . 16 . Heaviest Build 140 | 14 38 32 30 36 63 40 121 121 104 81 78 68 75 75 81 111 117 115 115 130 140 4 Greatest Support 240 | 40 40 40 40 40 69 96 48 80 88 51 51 51 51 60 80 138 230 240 240 240 148 70 Greatest Overweight (x) 22 | . . . . . 2 4 3 7 5 22 1 1 1 1 1 4 1 . . 10 1 1 Average Overweight (x) . | . . . . . . . 2 2 1 1 1 1 1 1 . . . . . . . . Largest Inventory Capacity 25 | 8 15 15 15 15 20 8 25 25 25 20 20 20 20 20 20 20 20 20 20 20 20 5 Average Capacity 18 | 7 13 15 15 15 17 7 16 25 24 20 20 20 20 20 20 20 20 20 20 20 18 5 Most Carried 25 | 6 15 14 14 15 20 8 25 25 25 20 20 20 20 20 20 20 20 20 20 20 20 5 Average Carried 17 | 2 12 13 13 14 15 7 14 25 23 19 19 20 19 19 19 19 17 19 18 19 17 4 Final Capacity 25 | 8 15 15 15 15 5 8 25 25 20 20 20 20 20 20 20 20 20 20 20 20 5 5 Final Carried 25 | 6 14 13 14 15 4 8 25 25 20 19 20 20 20 19 20 20 20 16 20 15 4 4 Class Distribution -------------------- 21% | Hacker-Gladiator 19% | Scavenger-Tank 18% | Scavenger-Gladiator 17% | Mutant 8% | Skirmisher 5% | Scavenger-Skirmisher 3% | Gladiator 3% | Scavenger-Mutant Dominant Class ---------------- Mutant | -10/Materials Mutant | -10/Mines Mutant | -10/Exiles Mutant | -9/Mines Scavenger-Skirmisher | -8/Materials Skirmisher | -7/Factory Scavenger-Mutant | -7/Storage Scavenger-Gladiator | -7/Recycling Scavenger-Gladiator | -7/Scraptown Hacker-Gladiator | -5/Factory Hacker-Gladiator | -5/Upper Caves Hacker-Gladiator | -5/Upper Caves Hacker-Gladiator | -5/Zhirov Hacker-Gladiator | -4/Proximity Caves Hacker-Gladiator | -4/Factory Hacker-Gladiator | -4/Extension Scavenger-Tank | -4/Cetus Scavenger-Mutant | -4/Archives Scavenger-Tank | -4/Hub_04(d) Scavenger-Tank | -3/Research Scavenger-Tank | -2/Research Mutant | -1/Access Resources | -11 -10 -10 -10 -9 -8 -7 -7 -7 -7 -5 -5 -5 -5 -4 -4 -4 -4 -4 -4 -3 -2 -1 ----------- Run | Yrd Mat Min Exi Min Mat Fac Sto Rec Scr Fac Upp Upp Zhi Pro Fac Ext Cet Arc Hub Res Res Acc Matter Collected 8971 | 293 301 . . 116 752 832 674 320 238 1006 344 50 60 52 163 1183 241 . 121 1560 600 65 Remotely 93 | . . . . . 93 . . . . . . . . . . . . . . . . . Salvage Created 15677 | 212 696 . . 81 1227 863 786 369 . 1894 424 . 158 88 772 2105 341 . 267 3961 1305 128 Parts 745 | 17 41 . . 6 75 45 35 12 . 85 10 . 4 1 30 81 25 . 19 194 53 12 Haulers Intercepted 16 | . 1 . . . 4 . 5 . . 1 . . . . 1 . . . . 2 2 . Recyclers Shooed 20 | . 1 . . . 2 1 . 2 . 4 . . . . 1 2 . . . 7 . . Parts Field Recycled . | . . . . . . . . . . . . . . . . . . . . . . . Retrieved Matter . | . . . . . . . . . . . . . . . . . . . . . . . Parts Self-Destructed 13 | . . . . . . . . . . . 7 2 3 1 . . . . . . . . Prevented 4 | . . . . . . . . . . . 2 2 . . . . . . . . . . Kills | -11 -10 -10 -10 -9 -8 -7 -7 -7 -7 -5 -5 -5 -5 -4 -4 -4 -4 -4 -4 -3 -2 -1 ------- Run | Yrd Mat Min Exi Min Mat Fac Sto Rec Scr Fac Upp Upp Zhi Pro Fac Ext Cet Arc Hub Res Res Acc Combat Hostiles Destroyed 186 | . 15 . . 5 23 14 15 2 . 12 6 . . 2 2 21 4 . 3 43 17 2 Melee 23 | . . . . . . 1 2 . . 6 1 . . 2 2 6 . . . 1 . 2 Guns 80 | . 15 . . 5 18 . 1 . . . . . . . . 2 1 . 3 33 2 . Cannons 30 | . . . . . . 8 8 2 . . . . . . . . 2 . . 2 8 . AOE 33 | . . . . . 5 5 1 . . 5 4 . . . . 9 . . . 1 3 . Classes Destroyed 17 | 3 4 . . 1 4 1 . . . . 1 . . . 1 2 . . . . . . Worker 26 | 1 1 . . . 2 5 1 . . 5 . . . . 1 4 . . . 6 . . Builder 25 | . . . . . 1 1 2 1 . 7 . . . . 3 6 . . 1 3 . . Tunneler 11 | 5 . . . . . . . . . 2 . . . . 1 2 . . . 1 . . Hauler 16 | . 1 . . . 4 . 5 . . 1 . . . . 1 . . . . 2 2 . Recycler 36 | 1 1 . . . 2 3 2 5 . 8 . . . . 3 6 . . . 5 . . Minesweeper 1 | . . . . . . . . . . . 1 . . . . . . . . . . . Mechanic 2 | . . . . . . . . . . . . . . . 1 1 . . . . . . Operator 8 | . . . . . 1 1 . . . 1 . . . . 1 2 . . 2 . . . Watcher 11 | . 1 . . . 1 2 . . . 3 . . . . 1 . 1 . . 1 1 . Swarmer 37 | . 3 . . 4 9 . 4 . . 1 4 . . . . . . . . 7 5 . Grunt 59 | . 12 . . . 8 7 6 . . 1 2 . . . 1 9 . . . 7 6 . Brawler 1 | . . . . . . . . . . . . . . . . 1 . . . . . . Duelist 3 | . . . . . . . . . . . . . . . . 2 . . . 1 . . Sentry 26 | . . . . . 5 3 2 2 . 2 . . . . . 5 . . 1 5 1 . Hunter 11 | . . . . . 1 1 1 . . . . . . . . . . . . 6 2 . Programmer 42 | . . . . . . 3 2 . . 8 . . . 2 1 2 . . 2 17 3 2 Cetus Guard 4 | . . . . . . . . . . . . . . . . . 4 . . . . . Assembled 1 | . . . . 1 . . . . . . . . . . . . . . . . . . Thug 2 | . . . . . . . . . . . . . . . . 2 . . . . . . Best Kill Streak 13 | 2 5 . . 4 5 4 4 3 . 6 4 . . 2 5 13 5 . 2 8 5 2 Combat Bots Only 5 | . 5 . . 4 4 4 3 2 . 3 4 . . 2 2 4 4 . 2 5 5 2 Max Kills in Single Turn 4 | 1 2 . . 1 2 3 2 1 . 4 4 . . 1 2 3 1 . 1 2 2 1 Gunslinging 1 | . 1 . . . . . . . . . . . . . . 1 . . . 1 . . Exploded 4 | . . . . . 1 3 1 . . 1 4 . . . . 3 . . . 1 2 . Melee 1 | . . . . . . 1 1 . . 1 1 . . 1 1 1 . . . 1 . 1 Uniques/NPCs Destroyed 1 | . . . . . . . . . . . . . . . . 1 . . . . . . A7 (-4/Extension) Combat | -11 -10 -10 -10 -9 -8 -7 -7 -7 -7 -5 -5 -5 -5 -4 -4 -4 -4 -4 -4 -3 -2 -1 -------- Run | Yrd Mat Min Exi Min Mat Fac Sto Rec Scr Fac Upp Upp Zhi Pro Fac Ext Cet Arc Hub Res Res Acc Hostile Shots Fired 2245 | . 69 . . 41 189 149 264 135 . 139 22 . . 37 10 187 93 20 14 467 367 42 Missed 777 | . 16 . . 12 58 72 91 45 . 36 7 . . 10 4 62 29 9 3 131 170 22 Hits 1468 | . 53 . . 29 131 77 173 90 . 103 15 . . 27 6 125 64 11 11 336 197 20 Melee 1 | . . . . . . . . . . . . . . . . . . . . 1 . . Projectile 1467 | . 53 . . 29 131 77 173 90 . 103 15 . . 27 6 125 64 11 11 335 197 20 AOE 4 | . . . . . . 3 . . . . . . . 1 . . . . . . . . Critical Strikes 66 | . . . . . 11 1 3 . . 8 . . . 2 . 9 4 3 . 16 9 . Part Disruptions 4 | . . . . . . . . . . . . . . . . . . . . 4 . . Damage Taken 27588 | . 591 . . 226 2474 1062 2182 724 . 2109 232 . . 602 112 2881 1821 1485 369 6029 4283 406 Core 3638 | . 55 . . 12 510 107 310 67 . 330 82 . . 105 20 273 47 150 . 396 1097 77 Absorbed by Shields 2055 | . . . . . . . . . . 153 . . . . . 64 . . . 1403 435 . Reduced by Siege Mode 248 | . . . . . . . . . . . . . . . . . 7 . . 241 . . Regen/Repaired (Parts) 143 | . . . . . . . . . . . . . . . 143 . . . . . . . Core Remaining (%) 55 | 100 . . . 73 7 . . . 30 . . . . 48 . . . . 57 62 24 95 Volleys Fired 695 | 23 47 . . 14 88 42 52 12 . 47 3 . . 2 3 67 20 . 18 169 88 . Largest 4 | 2 2 . . 2 4 3 2 2 . 1 1 . . 1 1 3 3 . 3 4 2 . Hottest 303 | 70 100 . . 100 113 200 80 80 . 50 50 . . 40 55 101 123 . 195 303 108 . Shots Fired 1380 | 46 91 . . 25 287 86 92 24 . 47 3 . . 2 3 83 29 . 34 424 104 . Gun 905 | 46 88 . . 22 273 9 11 . . . . . . . . 24 12 . 34 378 8 . Cannon 379 | . . . . . . 75 79 24 . 24 . . . 2 3 15 15 . . 46 96 . Launcher 81 | . . . . . 7 2 2 . . 23 3 . . . . 44 . . . . . . Special 15 | . 3 . . 3 7 . . . . . . . . . . . 2 . . . . . Kinetic 930 | 23 81 . . 22 251 69 90 24 . 24 . . . 2 3 39 14 . 19 206 63 . Thermal 278 | 23 10 . . 3 29 12 . . . . . . . . . . . . 15 186 . . Explosive 45 | . . . . . 7 2 2 . . 16 2 . . . . 16 . . . . . . Electromagnetic 125 | . . . . . . 3 . . . 7 1 . . . . 28 13 . . 32 41 . Robot Hit Streak 30 | 10 12 . . 4 10 8 9 23 . 30 1 . . . . 5 9 . 6 14 6 . Robot Miss Streak 6 | 3 2 . . 4 6 3 3 . . . 1 . . . . 6 2 . 2 4 3 . Penetration Max 2 | . . . . . . . . . . . . . . . . 1 1 . . 2 1 . Secondary Targets 19 | . 3 . . . 4 . . . . . . . . . . 1 1 . . 10 . . Max Gunslinging Chain 2 | . 1 . . . 1 . . . . . . . . . . 1 1 . . 2 . . Shots Hit Robots 1027 | 28 62 . . 10 160 68 89 29 . 61 17 . 4 13 19 113 22 . 13 265 49 5 Core Hits 552 | 10 27 . . 6 79 34 31 10 . 50 14 . 4 3 10 111 12 . 10 115 24 2 Critical Kills 13 | . . . . . 1 . . 1 . . 1 . . . . . 1 . 2 7 . . Critical Parts Destroyed 17 | . . . . . 1 . 2 . . 3 . . . 1 . 2 . . . 8 . . Critical Strikes 63 | . 1 . . . 3 7 10 1 . 5 3 . . 1 . 7 1 . 2 22 . . Burn 2 | . 1 . . . 1 . . . . . . . . . . . . . . . . . Destroy 21 | . . . . . 2 . . . . . . . . . . 1 1 . 2 15 . . Blast 12 | . . . . . . 6 4 . . . . . . . . 1 . . . 1 . . Corrupt 3 | . . . . . . . . . . . . . . . . . . . . 3 . . Smash 9 | . . . . . . . 2 1 . 3 1 . . 1 . 1 . . . . . . Sever 7 | . . . . . . 1 4 . . . 2 . . . . . . . . . . . Impale 9 | . . . . . . . . . . 2 . . . . . 4 . . . 3 . . Melee Attacks 481 | . . . . . 7 21 50 8 . 151 20 . 6 24 37 100 . . 6 34 2 15 Impact 101 | . . . . . . . 11 8 . 29 8 . 2 17 7 13 . . 6 . . . Slashing 127 | . . . . . 7 20 39 . . 20 8 . 3 5 6 2 . . . . 2 15 Piercing 209 | . . . . . . . . . . 102 4 . 1 2 24 42 . . . 34 . . Sneak Attacks 126 | . . . . . . 10 8 7 . 28 1 . . . 12 52 . . . 7 . 1 Combat Hostiles 8 | . . . . . . . 3 . . . . . . . . 5 . . . . . . Follow-up Attacks 46 | . . . . . . . 10 . . 16 3 . 1 5 3 8 . . . . . . Damage Inflicted 39614 | 320 979 . . 165 2483 2615 3270 1242 . 4157 1127 . 214 534 1446 7061 686 . 386 9884 2697 348 Guns 12310 | 316 943 . . 150 1915 167 148 . . . . . . . . 355 277 . 386 7546 107 . Cannons 7860 | . . . . . . 1422 1393 592 . . . . . . . 414 409 . . 1286 2344 . Explosions 7627 | . . . . . 511 332 384 . . 1190 512 . . . . 4217 . . . 235 246 . Melee 11672 | . . . . . . 663 1345 648 . 2967 615 . 214 534 1446 2075 . . . 817 . 348 Ramming 121 | 4 36 . . 15 33 31 . 2 . . . . . . . . . . . . . . Kinetic 12929 | 117 906 . . 150 1704 1290 1541 592 . . . . . . . 769 356 . 152 4095 1257 . Thermal 5200 | 199 37 . . . 235 295 . . . . . . . . . 115 . . 234 3839 246 . Explosive 6054 | . . . . . 511 332 384 . . 1051 462 . . . . 3079 . . . 235 . . Electromagnetic 3638 | . . . . . . 4 . . . 139 50 . . . . 1023 330 . . 898 1194 . Impact 3268 | . . . . . . . 449 648 . 736 233 . . 412 187 603 . . . . . . Slashing 2558 | . . . . . . 663 896 . . 96 253 . 158 41 . 103 . . . . . 348 Piercing 5846 | . . . . . . . . . . 2135 129 . 56 81 1259 1369 . . . 817 . . Highest Corruption 48 | . . . . . 10 . 5 5 . 24 . . . 7 . 1 4 20 21 48 16 . Average Corruption 6 | . . . . . 10 . 2 5 . 10 . . . 6 . 1 3 4 20 5 6 . Corruption Purged 31 | . . . . . . . . . . 24 . . . . . . . . . 7 . . Corruption Blocked 14 | . . . . . . . . . . . . . . . . . . . . 14 . . Effects 206 | . . . . . 13 . 19 28 . 56 . . . 14 . 7 8 3 27 16 15 . Message Errors 49 | . . . . . 3 . 6 6 . 14 . . . 5 . . 2 . 4 5 4 . Matter Fused 56 | . . . . . 2 . 6 11 . 14 . . . 6 . 2 1 1 9 2 2 . Heat Flow Errors 22 | . . . . . 1 . 2 1 . 7 . . . . . . 2 1 5 3 . . Energy Discharges 29 | . . . . . 3 . 3 4 . 7 . . . 1 . 1 2 . 2 2 4 . Parts Fused 2 | . . . . . . . . . . 1 . . . . . . . . . 1 . . Data Loss (minor) 29 | . . . . . 1 . 1 5 . 8 . . . 1 . 2 1 1 3 3 3 . Data Loss (major) 6 | . . . . . . . . . . 3 . . . 1 . 2 . . . . . . Misfires 4 | . . . . . . . 1 . . 1 . . . . . . . . 2 . . . Alerts 1 | . . . . . . . . 1 . . . . . . . . . . . . . . Misdirections 2 | . . . . . . . . . . . . . . . . . . . . . 2 . Weapon Failures 6 | . . . . . 3 . . . . 1 . . . . . . . . 2 . . . Overload Shots . | . . . . . . . . . . . . . . . . . . . . . . . Overflow Damage 2883 | . 1 . . . 7 170 298 239 . 799 90 . . 112 308 559 . . . 155 57 88 Projectiles 237 | . . . . . . 44 54 . . 12 . . . . . 2 . . . 68 57 . Explosions 230 | . . . . . 7 . 28 . . 26 35 . . . . 125 . . . 9 . . Melee 2416 | . 1 . . . . 126 216 239 . 761 55 . . 112 308 432 . . . 78 . 88 Knockbacks 56 | . 1 . . . . 9 12 2 . 4 1 . . 1 . 5 . . . 5 16 . Impact 11 | . 1 . . . . . 1 2 . 3 1 . . 1 . 2 . . . . . . Kinetic 41 | . . . . . . 9 11 . . . . . . . . 2 . . . 4 15 . Secondary 4 | . . . . . . . . . . 1 . . . . . 1 . . . 1 1 . Self-Inflicted Damage 197 | . . . . . 7 10 11 . . 18 1 . . . . 46 . . . 42 62 . Shots 9 | . . . . . 1 . 1 . . 1 1 . . . . 3 . . . 1 1 . Rammed 21 | 1 4 . . 4 8 2 . 1 . . . . . . . . . . . 1 . . Targets Rammed 23 | 2 4 . . 4 8 3 . 1 . . . . . . . . . . . 1 . . Kicked . | . . . . . . . . . . . . . . . . . . . . . . . Crushed 2 | 1 . . . . . 1 . . . . . . . . . . . . . . . . Highest Temperature 438 | 80 70 . . 64 237 180 248 315 . 196 6 . . . 6 84 345 119 238 438 343 . Average Temperature 75 | 33 17 . . 30 70 57 35 142 . 59 4 . . . 3 28 179 61 70 105 91 . Received Heat Transfer 4047 | . 282 . . 6 630 213 672 210 . 27 27 . . 12 9 616 279 133 27 551 344 9 Effects 7 | . . . . . 1 . . . . . . . . . . . 1 . 3 2 . . Shutdowns 2 | . . . . . . . . . . . . . . . . . 1 . . 1 . . Energy Bleed 2 | . . . . . 1 . . . . . . . . . . . . . . 1 . . Interference 3 | . . . . . . . . . . . . . . . . . . . 3 . . . Siege Activations 6 | . . . . . . . . . . . . . . . . . 1 . . 5 . . Total Turns 258 | . . . . . . . . . . . . . . . . . 19 . . 239 . . Longest Duration 151 | . . . . . . . . . . . . . . . . . 19 . . 151 . . Martial Activations . | . . . . . . . . . . . . . . . . . . . . . . . Shielding Activations . | . . . . . . . . . . . . . . . . . . . . . . . Robots Disrupted 4 | . . . . . . . . . . . . . . . . . 2 . . 2 . . Combat Hostiles 3 | . . . . . . . . . . . . . . . . . 2 . . 1 . . Robots Corrupted 29 | . 1 . . . . . 3 2 . 5 1 . . . 2 5 1 . . 5 4 . Combat Hostiles 19 | . . . . . . . 3 . . 1 1 . . . . 4 1 . . 5 4 . Parts Fried 45 | . 1 . . . . . 5 2 . 6 . . . . 5 8 . . . 8 10 . Impact Corruptions 51 | . 1 . . . . 1 4 6 . 20 1 . . 6 6 6 . . . . . . Robots Melted 1 | . . . . . . . . . . . . . . . . . . . . 1 . . Combat Hostiles 1 | . . . . . . . . . . . . . . . . . . . . 1 . . Parts Melted 13 | . 1 . . . . 2 . . . . . . . . . . . . . 10 . . Heat Transferred 7225 | 592 185 . . . 753 448 . . . . . . . . . 250 . . 296 4551 150 . Parts Sabotaged . | . . . . . . . . . . . . . . . . . . . . . . . Parts Stolen . | . . . . . . . . . . . . . . . . . . . . . . . Parts Stripped . | . . . . . . . . . . . . . . . . . . . . . . . Power Chain Reactions 5 | . . . . . . . . . . . . . . . . 3 . . . . 2 . Alert | -11 -10 -10 -10 -9 -8 -7 -7 -7 -7 -5 -5 -5 -5 -4 -4 -4 -4 -4 -4 -3 -2 -1 ------- Run | Yrd Mat Min Exi Min Mat Fac Sto Rec Scr Fac Upp Upp Zhi Pro Fac Ext Cet Arc Hub Res Res Acc Maximum Alert Level 3 | . 1 . . . 1 1 . . . 1 . . . . . 3 2 . . 2 2 1 Low Security (%) 78 | 100 84 100 . 100 82 92 100 100 . 91 . . . . 100 38 . 100 100 79 12 24 Level 1 14 | . 15 . . . 17 7 . . . 8 . . . . . 6 53 . . 17 82 75 Level 2 5 | . . . . . . . . . . . . . . . . 33 46 . . 3 5 . Level 3 2 | . . . . . . . . . . . . . . . . 22 . . . . . . Level 4 . | . . . . . . . . . . . . . . . . . . . . . . . Level 5 . | . . . . . . . . . . . . . . . . . . . . . . . High Security . | . . . . . . . . . . . . . . . . . . . . . . . Max Security . | . . . . . . . . . . . . . . . . . . . . . . . Peak Influence 1052 | 10 231 51 . 80 257 226 159 35 . 305 . . . . 55 1052 578 123 61 470 446 264 Initial 578 | . . 51 . . . 114 95 30 . . . . . . . . 578 123 20 23 263 264 Average 134 | 1 109 9 . 18 86 73 96 5 . 88 . . . . 10 439 404 96 18 126 267 212 Influence Increases 8765 | 35 464 . . 91 895 541 620 116 . 1033 160 . 10 50 172 2043 100 15 193 1347 767 113 Destroy 0b10 Robot/C 4340 | . 300 . . 80 500 280 300 40 . 360 120 . . 40 40 900 80 . 60 860 340 40 Destroy 0b10 Robot/NC 740 | 35 20 . . . 55 60 50 30 . 135 15 . 10 . 60 145 5 . 15 90 15 . Destroy Leader 894 | . 74 . . 10 140 104 80 . . 96 10 . . 10 4 96 . . 20 196 44 10 Allied During Kill 519 | . . . . . 4 . . . . . . . . . . 515 . . . . . . Trap Triggered on 0b10 10 | . . . . . . . . . . . . . . . . 10 . . . . . . Successful Hack 402 | . 37 . . . 27 23 24 43 . 67 . . . . 42 36 13 . 23 8 35 24 Select Force Hacks 30 | . 30 . . . . . . . . . . . . . . . . . . . . . Disable Machine 390 | . . . . . 15 45 60 . . 90 . . . . . 15 . . 45 90 30 . Destroy Structure 915 | . 3 . . 1 49 29 46 3 . 240 . . . . 26 236 2 . 30 88 138 24 Partial Spotted 15 | . . . . . . . . . . 15 . . . . . . . . . . . . Lose Combat Pursuer 510 | . . . . . 105 . 60 . . 30 15 . . . . 90 . 15 . 15 165 15 Influence Decreases 8548 | 35 332 132 . 91 642 584 751 195 . 751 391 51 10 50 172 1009 826 265 206 924 795 336 Entered New Map 1582 | . . 81 . . . 139 115 49 . . 105 11 . . . . 456 185 38 22 205 176 Time Decay 5113 | 35 322 51 . 91 439 425 506 146 . 444 286 40 10 40 172 540 190 50 158 598 410 160 Lost Part 1007 | . 10 . . . 150 20 130 . . 67 . . . 10 . 129 120 30 10 161 170 . Lost Ally 520 | . . . . . . . . . . 90 . . . . . 340 60 . . 20 10 . Purge Threat 326 | . . . . . 53 . . . . 150 . . . . . . . . . 123 . . Squads Dispatched 68 | . 3 . . 1 7 8 6 . . 8 . . . . 8 4 . . 2 10 7 4 Investigation 13 | . 2 . . . 2 1 1 . . 2 . . . . 3 . . . . . . 2 Extermination 23 | . . . . . . 4 2 . . 4 . . . . 3 . . . 1 6 2 1 Reinforcement 28 | . 1 . . 1 4 3 3 . . 2 . . . . 2 3 . . 1 4 3 1 Assault 3 | . . . . . . . . . . . . . . . . 1 . . . . 2 . Garrison 1 | . . . . . 1 . . . . . . . . . . . . . . . . . Intercept . | . . . . . . . . . . . . . . . . . . . . . . . Searches Triggered . | . . . . . . . . . . . . . . . . . . . . . . . Construction Impeded 6 | . . . . 1 . 1 1 . . 1 . . . . . 1 . . . . 1 . Haulers Reinforced 7 | . . . . . . . 1 . . 1 . . . . 1 . . . . 2 2 . Active Scanning Responses . | . . . . . . . . . . . . . . . . . . . . . . . Cargo Convoy Interrupts . | . . . . . . . . . . . . . . . . . . . . . . . Stealth | -11 -10 -10 -10 -9 -8 -7 -7 -7 -7 -5 -5 -5 -5 -4 -4 -4 -4 -4 -4 -3 -2 -1 --------- Run | Yrd Mat Min Exi Min Mat Fac Sto Rec Scr Fac Upp Upp Zhi Pro Fac Ext Cet Arc Hub Res Res Acc Distress Signals 16 | . 1 . . . 7 1 3 . . . . . . . . 1 1 . 1 1 . . Communications Jammed 87 | . . . . . . . . . . 7 . . . . 1 53 . . 2 12 12 . Distress Signals 86 | . . . . . . . . . . 7 . . . . 1 53 . . 2 11 12 . Times Spotted 369 | . 20 . . 8 53 23 39 4 . 19 8 . . 2 9 54 7 7 10 65 35 6 Peak Tracking Total 16 | . 4 . . 4 7 4 5 4 . 3 5 . . 2 2 5 5 7 4 8 16 5 Tactical Retreats 17 | . . . . . 3 . 2 . . 1 1 . . . . 3 . 1 . 1 4 1 Traps | -11 -10 -10 -10 -9 -8 -7 -7 -7 -7 -5 -5 -5 -5 -4 -4 -4 -4 -4 -4 -3 -2 -1 ------- Run | Yrd Mat Min Exi Min Mat Fac Sto Rec Scr Fac Upp Upp Zhi Pro Fac Ext Cet Arc Hub Res Res Acc Traps Triggered 25 | . 1 . . . 2 3 3 . . 2 . . . . 2 8 . . . 2 2 . Indirectly 1 | . . . . . . . . . . . . . . . . 1 . . . . . . Trap Hack Attempts . | . . . . . . . . . . . . . . . . . . . . . . . Triggered . | . . . . . . . . . . . . . . . . . . . . . . . Disarmed . | . . . . . . . . . . . . . . . . . . . . . . . Reprogrammed . | . . . . . . . . . . . . . . . . . . . . . . . Reused 1 | . . . . . . . . . . . . . . . . 1 . . . . . . Traps Extracted . | . . . . . . . . . . . . . . . . . . . . . . . Installed 1 | . . . . . . . . . . . . . . . . 1 . . . . . . Triggered 1 | . . . . . . . . . . . . . . . . 1 . . . . . . Most Traps Carried 2 | . . . . . . . . . . . 2 2 2 2 2 2 1 1 1 1 . . Machines | -11 -10 -10 -10 -9 -8 -7 -7 -7 -7 -5 -5 -5 -5 -4 -4 -4 -4 -4 -4 -3 -2 -1 ---------- Run | Yrd Mat Min Exi Min Mat Fac Sto Rec Scr Fac Upp Upp Zhi Pro Fac Ext Cet Arc Hub Res Res Acc Machines Disabled 30 | . . . . . 1 3 4 . . 6 . . . . . 5 . . 3 6 2 . Max in Single Turn 2 | . . . . . 1 1 1 . . 2 . . . . . 2 . . 2 1 1 . Garrison Access 3 | . . . . . . . . . . 2 . . . . . . . . . . 1 . Machines Repaired . | . . . . . . . . . . . . . . . . . . . . . . . Machines Dismantled . | . . . . . . . . . . . . . . . . . . . . . . . Machines Sabotaged . | . . . . . . . . . . . . . . . . . . . . . . . Overloaded Fab Kills . | . . . . . . . . . . . . . . . . . . . . . . . Hacking | -11 -10 -10 -10 -9 -8 -7 -7 -7 -7 -5 -5 -5 -5 -4 -4 -4 -4 -4 -4 -3 -2 -1 --------- Run | Yrd Mat Min Exi Min Mat Fac Sto Rec Scr Fac Upp Upp Zhi Pro Fac Ext Cet Arc Hub Res Res Acc Machines Accessed 104 | . 9 . 2 . 10 7 7 4 . 17 . 1 7 . 12 7 2 1 5 5 3 5 Terminals 68 | . 7 . . . 8 6 6 4 . 8 . 1 . . 5 7 2 . 5 3 2 4 Fabricators 8 | . . . . . . 1 . . . 4 . . . . 2 . . . . . 1 . Repair Stations 2 | . . . . . 1 . . . . . . . . . 1 . . . . . . . Recycling Units 8 | . 2 . . . . . . . . 2 . . . . 2 . . . . 1 . 1 Scanalyzers 2 | . . . . . . . . . . 1 . . . . 1 . . . . . . . Garrison Access 6 | . . . . . 1 . 1 . . 2 . . . . 1 . . . . 1 . . Total Hacks 338 | . 36 . 2 . 36 15 15 10 . 57 . 1 46 . 46 12 3 25 8 11 6 9 Successful 211 | . 26 . 2 . 19 8 9 6 . 24 . 1 46 . 25 7 3 25 3 4 2 1 Failed 127 | . 10 . . . 17 7 6 4 . 33 . . . . 21 5 . . 5 7 4 8 Catastrophic 24 | . . . . . 1 1 1 1 . 5 . . . . 3 . . . 3 2 2 5 Database Lockouts . | . . . . . . . . . . . . . . . . . . . . . . . Manual 107 | . 13 . 1 . 14 6 4 3 . 31 . . . . 26 1 . . 3 2 3 . Terminals 205 | . 33 . . . 30 13 14 10 . 31 . 1 . . 31 12 3 . 8 6 5 8 Fabricators 23 | . . . . . . 2 . . . 16 . . . . 4 . . . . . 1 . Repair Stations 4 | . . . . . 3 . . . . . . . . . 1 . . . . . . . Recycling Units 17 | . 3 . . . . . . . . 3 . . . . 6 . . . . 4 . 1 Scanalyzers 5 | . . . . . . . . . . 3 . . . . 2 . . . . . . . Garrison Access 11 | . . . . . 3 . 1 . . 4 . . . . 2 . . . . 1 . . Terminal Hacks 155 | . 17 . 2 . 11 5 8 5 . 8 . 1 46 . 10 7 3 25 3 2 1 1 Record 63 | . . . 1 . . . . . . . . 1 34 . . . 2 25 . . . . Part Schematic 7 | . . . . . . . . 1 . 1 . . 4 . 1 . . . . . . . Robot Analysis 5 | . 1 . . . . . . . . . . . 4 . . . . . . . . . Prototype ID Bank 14 | . 4 . . . 3 . 1 1 . . . . 4 . 1 . . . . . . . Open Door 10 | . . . . . . . 4 . . . . . . . . 5 1 . . . . . Level Access Points 2 | . . . . . . . . . . . . . . . . . . . 1 1 . . Branch Access Points 3 | . . . . . . 1 . . . 1 . . . . 1 . . . . . . . Machine Index 1 | . . . . . . . . 1 . . . . . . . . . . . . . . Terminal Index 6 | . 1 . . . 1 1 . . . 1 . . . . . . . . 1 . . 1 Alert Level 6 | . 2 . . . 1 1 1 . . 1 . . . . . . . . . . . . Unreport Threat 3 | . . . . . 1 . . . . 1 . . . . . . . . . 1 . . Locate Traps 15 | . 3 . . . 2 2 1 1 . 1 . . . . 3 2 . . . . . . Recall Investigation 1 | . . . . . . . . . . . . . . . 1 . . . . . . . Recall Extermination 2 | . . . . . . . . . . 1 . . . . 1 . . . . . . . Hauler Manifests 2 | . 2 . . . . . . . . . . . . . . . . . . . . . Registered Components 1 | . 1 . . . . . . . . . . . . . . . . . . . . . Zone Layout 13 | . 3 . . . 3 . 1 1 . 1 . . . . 2 . . . 1 . 1 . Proto ID Catalog 1 | . . . 1 . . . . . . . . . . . . . . . . . . . Fabricator Hacks 5 | . . . . . . 1 . . . 2 . . . . 2 . . . . . . . Network Status 3 | . . . . . . 1 . . . 2 . . . . . . . . . . . . Load Schematic 1 | . . . . . . . . . . . . . . . 1 . . . . . . . Build 1 | . . . . . . . . . . . . . . . 1 . . . . . . . Repair Station Hacks 1 | . . . . . 1 . . . . . . . . . . . . . . . . . Scan Component 1 | . . . . . 1 . . . . . . . . . . . . . . . . . Recycling Unit Hacks 9 | . 1 . . . . . . . . 2 . . . . 4 . . . . 2 . . Report Inventory 6 | . 1 . . . . . . . . 2 . . . . 2 . . . . 1 . . Retrieve Components 3 | . . . . . . . . . . . . . . . 2 . . . . 1 . . Scanalyzer 4 | . . . . . . . . . . 2 . . . . 2 . . . . . . . Insert Component 2 | . . . . . . . . . . 1 . . . . 1 . . . . . . . Analyze 2 | . . . . . . . . . . 1 . . . . 1 . . . . . . . Garrison Access Hacks 2 | . . . . . . . . . . 2 . . . . . . . . . . . . Seal Access 2 | . . . . . . . . . . 2 . . . . . . . . . . . . Unauthorized Hacks 35 | . 8 . . . 7 2 1 1 . 8 . . . . 7 . . . . . 1 . Terminals 26 | . 7 . . . 7 1 1 1 . 4 . . . . 5 . . . . . . . Assimilate 1 | . . . . . . . . . . . . . . . 1 . . . . . . . Botnet 15 | . 2 . . . 2 1 1 1 . 4 . . . . 4 . . . . . . . Skim 10 | . 5 . . . 5 . . . . . . . . . . . . . . . . . Fabricators 7 | . . . . . . 1 . . . 4 . . . . 1 . . . . . 1 . Prioritize 1 | . . . . . . . . . . . . . . . 1 . . . . . . . Liberate 5 | . . . . . . . . . . 4 . . . . . . . . . . 1 . Haulers 1 | . . . . . . 1 . . . . . . . . . . . . . . . . Repair Stations 1 | . . . . . . . . . . . . . . . 1 . . . . . . . Patch 1 | . . . . . . . . . . . . . . . 1 . . . . . . . Recycling Units 1 | . 1 . . . . . . . . . . . . . . . . . . . . . Tunnel 1 | . 1 . . . . . . . . . . . . . . . . . . . . . Scanalyzers . | . . . . . . . . . . . . . . . . . . . . . . . Garrison Access . | . . . . . . . . . . . . . . . . . . . . . . . Data Cores Recovered 5 | . . . . . . 1 . . . 1 . . . . 1 . . . 2 . . . Used . | . . . . . . . . . . . . . . . . . . . . . . . Hacking Detections 76 | . 5 . . . 10 6 4 4 . 15 . . . . 11 3 1 . 5 4 3 5 Full Trace Events 5 | . . . . . . . . . . 1 . . . . 2 . . . . . . 2 Feedback Events 1 | . . . . . . . . . . 1 . . . . . . . . . . . . Corruption 1 | . . . . . . . . . . 1 . . . . . . . . . . . . Feedback Blocked . | . . . . . . . . . . . . . . . . . . . . . . . Robot Schematics Acquired . | . . . . . . . . . . . . . . . . . . . . . . . Robots Built . | . . . . . . . . . . . . . . . . . . . . . . . Authchips . | . . . . . . . . . . . . . . . . . . . . . . . Time . | . . . . . . . . . . . . . . . . . . . . . . . Total Robot Build Rating . | . . . . . . . . . . . . . . . . . . . . . . . Part Schematics Acquired 9 | . . . . . . . . 1 . 2 . . 4 . 2 . . . . . . . Parts Built 2 | . . . . . . . . . . . . . . . 2 . . . . . . . Authchips . | . . . . . . . . . . . . . . . . . . . . . . . Time 58 | . . . . . . . . . . . . . . . 58 . . . . . . . Total Part Build Rating 14 | . . . . . . . . . . . . . . . 14 . . . . . . . Parts Repaired . | . . . . . . . . . . . . . . . . . . . . . . . Time . | . . . . . . . . . . . . . . . . . . . . . . . Parts Recycled . | . . . . . . . . . . . . . . . . . . . . . . . Recycled Matter . | . . . . . . . . . . . . . . . . . . . . . . . Retrieved Matter . | . . . . . . . . . . . . . . . . . . . . . . . Retrieved Components 7 | . . . . . . . . . . . . . . . 4 . . . . 3 . . Parts Scanalyzed 2 | . . . . . . . . . . 1 . . . . 1 . . . . . . . Part Schematics Acquired 2 | . . . . . . . . . . 1 . . . . 1 . . . . . . . Parts Damaged . | . . . . . . . . . . . . . . . . . . . . . . . Bothacking | -11 -10 -10 -10 -9 -8 -7 -7 -7 -7 -5 -5 -5 -5 -4 -4 -4 -4 -4 -4 -3 -2 -1 ------------ Run | Yrd Mat Min Exi Min Mat Fac Sto Rec Scr Fac Upp Upp Zhi Pro Fac Ext Cet Arc Hub Res Res Acc Used RIF Installer . | . . . . . . . . . . . . . . . . . . . . . . . Robots Hacked 2 | . . . . . . . . . . . . . . . . 2 . . . . . . Non-combat 1 | . . . . . . . . . . . . . . . . 1 . . . . . . Combat 1 | . . . . . . . . . . . . . . . . 1 . . . . . . Robot Hacks Applied 2 | . . . . . . . . . . . . . . . . 2 . . . . . . parse_system 2 | . . . . . . . . . . . . . . . . 2 . . . . . . Relay Couplers Released 6 | . . . . . . . 3 . . 3 . . . . . . . . . . . . Programmers 6 | . . . . . . . 3 . . 3 . . . . . . . . . . . . Fabnet Peak Effective % . | . . . . . . . . . . . . . . . . . . . . . . . Robots Rewired 19 | . . . . . . . . . . . . . . . . 19 . . . . . . Allies Hacked 6 | . . . . . . . . . . 1 . . . . . 5 . . . . . . Hacks Repelled 1 | . . . . . . . . . . . . . . . . 1 . . . . . . Allies | -11 -10 -10 -10 -9 -8 -7 -7 -7 -7 -5 -5 -5 -5 -4 -4 -4 -4 -4 -4 -3 -2 -1 -------- Run | Yrd Mat Min Exi Min Mat Fac Sto Rec Scr Fac Upp Upp Zhi Pro Fac Ext Cet Arc Hub Res Res Acc Total Allies 33 | . . . . 3 . . . . . 6 . . . . . 24 . . . . . . Largest Group 11 | . . . . 3 1 . . . . 3 . . . . . 11 3 . . . . . Highest-Rated Group 537 | . . . . 40 15 . . . . 138 . . . . . 537 125 . . . . . Highest-Rated Ally 159 | . . . . 16 15 . . . . 54 . . . . . 159 46 . . . . . Total Orders 16 | . . . . . . . 2 . . 4 . . . . . 4 . . . 4 2 . STAY 2 | . . . . . . . . . . . . . . . . 2 . . . . . . FOLLOW 2 | . . . . . . . . . . . . . . . . 2 . . . . . . EXPLORE 10 | . . . . . . . 1 . . 4 . . . . . . . . . 3 2 . RETURN 2 | . . . . . . . 1 . . . . . . . . . . . . 1 . . Ally Attacks 266 | . . . . 6 16 . . . . 29 . . . . . 203 12 . . . . . Total Damage 6885 | . . . . 21 86 . . . . 665 . . . . . 5856 257 . . . . . Kills 44 | . . . . . 2 . . . . 7 . . . . . 35 . . . . . . Allies Corrupted 5 | . . . . 1 . . . . . 2 . . . . . 2 . . . . . . Allies Melted 1 | . . . . . . . . . . . . . . . . 1 . . . . . . Intel | -11 -10 -10 -10 -9 -8 -7 -7 -7 -7 -5 -5 -5 -5 -4 -4 -4 -4 -4 -4 -3 -2 -1 ------- Run | Yrd Mat Min Exi Min Mat Fac Sto Rec Scr Fac Upp Upp Zhi Pro Fac Ext Cet Arc Hub Res Res Acc Active Infowar (turns) 14784 | 148 1179 330 441 . 1476 1595 262 . . 1553 564 340 227 389 941 2082 . . 320 2063 874 . Sensors 1527 | . . . . . . . . . . . 564 340 227 389 7 . . . . . . . Structural 3333 | . . . . . 1476 1595 262 . . . . . . . . . . . . . . . Seismic 2100 | 148 1179 330 441 . . . . . . . . . . . . . . . . 2 . . T.N.C. 2 | . . . . . . . . . . 2 . . . . . . . . . . . . Jamming 7727 | . . . . . . . . . . 1454 . . . . 934 2082 . . 320 2063 874 . ECM 99 | . . . . . . . . . . 99 . . . . . . . . . . . . Robot Analysis Total 5 | . 1 . . . . . . . . . . . 4 . . . . . . . . . Derelict Logs Recovered 6 | . . . . 1 . . . . . . 2 2 . 1 . . . . . . . . Drone Launches 12 | . . . . . . . 2 . . 4 . . . . . . . . . 4 2 . Drone Recoveries 7 | . . . . . . . 2 . . 2 . . . . . . . . . 2 1 . Exploration | -11 -10 -10 -10 -9 -8 -7 -7 -7 -7 -5 -5 -5 -5 -4 -4 -4 -4 -4 -4 -3 -2 -1 ------------- Run | Yrd Mat Min Exi Min Mat Fac Sto Rec Scr Fac Upp Upp Zhi Pro Fac Ext Cet Arc Hub Res Res Acc Turns Passed 24978 | 305 1362 330 441 396 2105 2236 1372 918 2698 3134 621 341 236 441 941 2176 389 112 553 2556 982 333 Spaces Moved 14596 | 157 588 198 276 210 1082 1383 718 492 1289 2204 481 296 191 334 929 1310 176 64 272 939 526 481 Core 1091 | 29 . . . . 71 352 5 . . 6 . . . . . . . . . . 148 480 Treads 5460 | 128 588 198 276 210 533 920 21 136 975 . . . . . . 319 176 64 272 642 1 1 Legs 887 | . . . . . 478 . 31 . . . . . . . . . . . . 1 377 . Wheels 1956 | . . . . . . 104 661 356 . 539 . . . . . . . . . 296 . . Hover 5202 | . . . . . . 7 . . 314 1659 481 296 191 334 929 991 . . . . . . Flight . | . . . . . . . . . . . . . . . . . . . . . . . Fastest Speed 27 | 50 160 160 160 160 50 50 100 145 98 94 110 110 105 92 27 94 160 160 160 110 50 50 Average Speed 131 | 139 160 160 160 160 150 129 134 173 205 104 110 110 107 104 86 119 166 160 160 145 106 51 Slowest Speed 1150 | 160 160 160 160 160 265 360 240 400 560 1150 110 110 110 105 105 480 240 160 160 230 190 180 Overloaded Moves 140 | . . . . . . . . . . . . . . 2 138 . . . . . . . Propulsion Burnouts . | . . . . . . . . . . . . . . . . . . . . . . . Robots Hopped . | . . . . . . . . . . . . . . . . . . . . . . . Potential Cave-ins . | . . . . . . . . . . . . . . . . . . . . . . . Cave-ins Triggered 1 | . . . . . 1 . . . . . . . . . . . . . . . . . Teleports 1 | . . . . . . . . . . . . . . . . . . . . 1 . . Exploration Rate (%) 51 | 7 87 49 61 36 70 35 83 84 56 39 57 49 62 51 20 95 70 72 35 31 21 13 Regions Visited 22 Branch Regions 14 Pre-discovered Areas 11 | . 4 . 1 1 1 . . . 1 . . . 3 . . . . . . . . . Known Exits Taken 12 | . . . 1 1 . 1 . 1 . 1 1 1 1 1 1 . . . 1 1 . . Unknown Exits Taken 10 | 1 1 1 . . 1 . 1 . 1 . . . . . . 1 1 1 . . 1 . Scrap Searched 15 | . . . . 1 . . . . 10 . 1 3 . . . . . . . . . . Spaces Dug 204 | . 3 . . . 18 6 . 1 . 77 1 . . 4 13 21 . . 7 26 19 8 Terrain Destroyed 608 | . 3 . . 1 58 28 52 3 . 115 28 . . 4 13 178 . . 14 50 53 8 Melee 127 | . . . . . 7 6 . 1 . 63 1 . . 3 10 1 . . 6 19 2 8 Projectile 161 | . 3 . . 1 6 16 34 2 . 14 . . . 1 3 5 . . 8 29 39 . AOE 318 | . . . . . 45 6 18 . . 38 27 . . . . 172 . . . . 12 . Terrain Rammed . | . . . . . . . . . . . . . . . . . . . . . . . Walls Destroyed . | . . . . . . . . . . . . . . . . . . . . . . . Machines Disabled . | . . . . . . . . . . . . . . . . . . . . . . . Actions | -11 -10 -10 -10 -9 -8 -7 -7 -7 -7 -5 -5 -5 -5 -4 -4 -4 -4 -4 -4 -3 -2 -1 --------- Run | Yrd Mat Min Exi Min Mat Fac Sto Rec Scr Fac Upp Upp Zhi Pro Fac Ext Cet Arc Hub Res Res Acc Total 18562 | 199 911 211 276 235 1359 1706 974 519 1337 2762 540 312 215 393 1014 1805 245 73 349 1744 840 543 Wait 1890 | . 250 11 . 3 91 205 100 . . 272 19 12 . 39 15 158 13 . 49 460 160 33 Move 14573 | 156 587 197 275 209 1081 1382 717 491 1288 2203 480 295 190 333 928 1309 175 63 271 938 525 480 Hop . | . . . . . . . . . . . . . . . . . . . . . . . Pick Up 231 | 11 10 . 1 1 31 10 28 . 9 23 4 . 4 . 8 25 10 . 4 37 13 2 Fast Attach 143 | 2 1 . . . . 21 13 3 4 27 3 . 7 . 7 12 7 3 . 14 12 7 Attach 145 | 5 2 . . . 20 2 9 . 4 23 2 . . 1 4 20 8 3 . 30 10 2 Detach 31 | . 2 . . . . 1 1 . 2 8 1 . . . 1 4 2 . . 5 4 . Swap 134 | . 5 2 . 4 18 4 2 1 13 20 7 3 1 1 1 22 4 1 1 17 7 . Drop 209 | . 3 1 . . 15 15 12 3 17 28 6 2 10 . 7 32 6 3 . 31 14 4 Fire 695 | 23 47 . . 14 88 42 52 12 . 47 3 . . 2 3 67 20 . 18 169 88 . Melee 396 | . . . . . 7 21 40 8 . 111 15 . 3 17 27 90 . . 6 34 2 15 Ram 1 | . . . . . . 1 . . . . . . . . . . . . . . . . Kick . | . . . . . . . . . . . . . . . . . . . . . . . Crush 22 | 2 4 . . 4 8 2 . 1 . . . . . . . . . . . 1 . . Escape Stasis 91 | . . . . . . . . . . . . . . . 13 65 . . . 8 5 . Rewire . | . . . . . . . . . . . . . . . . . . . . . . . Trap 1 | . . . . . . . . . . . . . . . . 1 . . . . . . Miscellaneous . | . . . . . . . . . . . . . . . . . . . . . . . Route ------- -11/Scrapyard -10/Materials (discovered 5 exits: *Mat x3 / [*Min] / Sub) -10/Mines (discovered 4 exits: *Mat x2 / *Exi / Sub) -10/Exiles (discovered 2 exits: *Min x2) -9/Mines -8/Materials -7/Factory (discovered 4 exits: [*Fac] / *Sto / Low x2) -7/Storage (discovered 2 exits: [*Fac] / *Rec) -7/Recycling (discovered 2 exits: *Fac / *Scr) -7/Scraptown -5/Factory (discovered 3 exits: *Fac / *Upp x2) -5/Upper Caves -5/Upper Caves -5/Zhirov -4/Proximity Caves -4/Factory (discovered 6 exits: Res / Upp x2 / *Ext x2 / Arm) -4/Extension (discovered 3 exits: *Res x2 / *Cet) -4/Cetus -4/Archives -4/Hub_04(d) (discovered 4 exits: *Res x4) -3/Research (discovered 4 exits: *Res x3 / Qua) -2/Research -1/Access To Epsilon Eridani History --------- Turn | Location | Event 7 | -11/Scrapyard | Discovered new exit (range 14) 306 | -11/Scrapyard | Entered Materials 307 | -10/Materials | Build established: Mutant 494 | -10/Materials | Discovered new exit (range 8) 636 | -10/Materials | Discovered new exit (range 7) 1077 | -10/Materials | Discovered new exit (range 8) 1216 | -10/Materials | Discovered new exit (range 15) 1352 | -10/Materials | Identified exit to Subcaves 1452 | -10/Materials | Learned location of 1 exit from Recycling 1486 | -10/Materials | Learned location of Storage (-7) 1668 | -10/Materials | Entered Mines 1669 | -10/Mines | Identified exit to Materials 1987 | -10/Mines | Deemed a non-threat by the Exiles lab entrance 1989 | -10/Mines | Discovered new exit (range 5) 1998 | -10/Mines | Entered Exiles 1999 | -10/Exiles | Identified exit to Mines 2058 | -10/Exiles | Met 8R-AWN 2088 | -10/Exiles | Met EX-HEX 2157 | -10/Exiles | Met EX-BIN 2187 | -10/Exiles | Aligned with FarCom system 2189 | -10/Exiles | Given EX-Vault access code 2243 | -10/Exiles | Opened EX-Vault 2254 | -10/Exiles | Found Superbattery 2287 | -10/Exiles | Warned to stay clear of 0b10 Research branches 2342 | -10/Exiles | Met EX-DEC 2356 | -10/Exiles | Learned location of Zion (-7) 2439 | -10/Exiles | Left Exiles lab with Superbattery 2439 | -10/Exiles | Entered Mines 2440 | -9/Mines | Identified exit to Materials 2667 | -9/Mines | Found a hidden stash of uninstalled traps 2723 | -9/Mines | Assisted by bots powering up and referring to "LRC-V3" 2770 | -9/Mines | Excavation squad dispatched 2770 | -9/Mines | A large section of the Mines collapsed 2835 | -9/Mines | Entered Materials 2835 | -8/Materials | Accompanied by 1 ally 2835 | -8/Materials | Evolved 4 slots: Propulsion x1, Utility x1, Weapon x2 2885 | -8/Materials | Garrison activated, responded to threat 3705 | -8/Materials | Build established: Scavenger-Skirmisher 4257 | -8/Materials | Discovered new exit (range 3) 4363 | -8/Materials | Lost 4 parts (1p1n1u1w) 4460 | -8/Materials | Learned location of 1 exit from Extension 4490 | -8/Materials | Learned 2 Lower Caves zone layouts 4526 | -8/Materials | Learned 4 Factory zone layouts 4544 | -8/Materials | Learned location of 2 exits from Lower Caves 4600 | -8/Materials | Crushed by falling debris 4600 | -8/Materials | System corruption reached 10% 4900 | -8/Materials | Core integrity fell below 50% 4902 | -8/Materials | Released all parts (5) 4908 | -8/Materials | Core integrity fell below 20% 4932 | -8/Materials | Lost 5 parts (1p1u3w) 4940 | -8/Materials | Entered Factory 4940 | -7/Factory | Evolved 2 slots: Propulsion x1, Utility x1 4941 | -7/Factory | Identified exit to Lower Caves 5145 | -7/Factory | Build established: Mutant 6180 | -7/Factory | Build established: Skirmisher 6556 | -7/Factory | Discovered new exit (range 15) 6635 | -7/Factory | Discovered new exit (range 16) 6935 | -7/Factory | Identified exit to Storage 7176 | -7/Factory | Entered Storage 7516 | -7/Storage | Lost 8 parts (1p2n3u2w) 7683 | -7/Storage | Met 01-MTF 7808 | -7/Storage | Discovered new exit (range 16) 7897 | -7/Storage | Core integrity fell below 50% 7938 | -7/Storage | Build established: Scavenger-Mutant 8023 | -7/Storage | Found Prototype Launcher 8411 | -7/Storage | Build established: Gladiator 8531 | -7/Storage | Found Prototype Device 8533 | -7/Storage | Used back door to open Recycling access 8533 | -7/Storage | Discovered new exit (range 4) 8548 | -7/Storage | Entered Recycling 8548 | -7/Recycling | Accompanied by 3 allies (01-MTF) 8549 | -7/Recycling | Identified exit to Scraptown 8722 | -7/Recycling | Build established: Scavenger-Gladiator 8902 | -7/Recycling | Discovered new exit (range 16) 9373 | -7/Recycling | Scanned before Scraplab entrance 9437 | -7/Recycling | Entered Scraplab 9466 | -7/Recycling | Entered Scraptown 9466 | -7/Scraptown | System corruption cleaned by C-Scrubber 9696 | -7/Scraptown | Identified Gui. Missile Launcher 9698 | -7/Scraptown | Identified 01-MTF's Autohacker 10126 | -7/Scraptown | Learned location of Extension (-4) 10492 | -7/Scraptown | Discovered new exit (range 11) 10723 | -7/Scraptown | Visited Bundlers 10976 | -7/Scraptown | Visited Assassins FH 11118 | -7/Scraptown | Visited SPCMW 11144 | -7/Scraptown | Visited Artisan Demo Area 11427 | -7/Scraptown | Visited IN-MT5's Study 11507 | -7/Scraptown | Turned away by UFD registrar 11576 | -7/Scraptown | Visited Symbiants 12134 | -7/Scraptown | Build established: Gladiator 12164 | -7/Scraptown | Entered Factory 12164 | -5/Factory | Evolved 4 slots: Power x1, Propulsion x1, Utility x2 12495 | -5/Factory | Build established: Hacker-Gladiator 12526 | -5/Factory | Discovered new exit (range 6) 12831 | -5/Factory | Identified exit to Factory 13838 | -5/Factory | System corruption reached 10% 13911 | -5/Factory | Lost 15 parts (2p5n5u3w) 14440 | -5/Factory | Build established: Scavenger-Gladiator 14812 | -5/Factory | Identified exit to Upper Caves 15282 | -5/Factory | Build established: Hacker-Gladiator 15298 | -5/Factory | Entered Upper Caves 15409 | -5/Upper Caves | Identified exit to Upper Caves 15677 | -5/Upper Caves | Learned location of 1 exit from Factory 15919 | -5/Upper Caves | Entered another Upper Caves area 16203 | -5/Upper Caves | Discovered new exit (range 5) 16204 | -5/Upper Caves | Learned 4 Factory zone layouts 16208 | -5/Upper Caves | Identified exit to Zhirov 16260 | -5/Upper Caves | Entered Zhirov 16260 | -5/Zhirov | Discovered new exit (range 3) 16317 | -5/Zhirov | Learned location of Quarantine (-3) 16317 | -5/Zhirov | Learned location of Testing (-2) 16317 | -5/Zhirov | Learned location of Command (-1) 16345 | -5/Zhirov | Found Alien Artifact 16345 | -5/Zhirov | Identified Integrated Reactor 16345 | -5/Zhirov | Installed Integrated Reactor, increased core energy generation (+10) 16433 | -5/Zhirov | Found Alien Artifact 16493 | -5/Zhirov | Identified exit to Proximity Caves 16496 | -5/Zhirov | Entered Proximity Caves 16525 | -4/Proximity Caves | Core integrity fell below 50% 16834 | -4/Proximity Caves | Learned 4 Research zone layouts 16928 | -4/Proximity Caves | Discovered exit to Factory (range 9) 16937 | -4/Proximity Caves | Entered Factory 16937 | -4/Factory | Evolved 2 slots: Propulsion x1, Utility x1 16938 | -4/Factory | Identified exit to Research 17159 | -4/Factory | Identified exit to Upper Caves 17159 | -4/Factory | Identified exit to Extension 17159 | -4/Factory | Identified exit to Armory 17682 | -4/Factory | Fabricated Nanoactuators? 17878 | -4/Factory | Entered Extension 18125 | -4/Extension | Lost 3 parts (1p1n1u) 18159 | -4/Extension | Rescued A7 18266 | -4/Extension | Rescued a captive Derelict 18289 | -4/Extension | Rescued a captive Derelict 18326 | -4/Extension | Rescued a captive Derelict 18391 | -4/Extension | Lost 3 allies 18741 | -4/Extension | Spotted B-86 Titan 18757 | -4/Extension | Build established: Commander-Gladiator 18761 | -4/Extension | Allies destroyed B-86 Titan 18778 | -4/Extension | Disrupted transfer network 18785 | -4/Extension | Allies destroyed A7 18789 | -4/Extension | Spotted B-86 Titan 18806 | -4/Extension | Allies destroyed B-86 Titan 18816 | -4/Extension | Extracted ID and sensor layout for unrecognized location from A7's data core 18864 | -4/Extension | P-70 Sage assimilated allied PM-DXU(h) 18904 | -4/Extension | Lost 3 allies 19001 | -4/Extension | Lost 4 allies 19411 | -4/Extension | Rescued a captive Derelict 19542 | -4/Extension | Build established: Scavenger-Gladiator 19628 | -4/Extension | First assault squad dispatched 19887 | -4/Extension | Lost 3 allies 19919 | -4/Extension | Discovered new exit (range 16) 19921 | -4/Extension | Discovered exit to Research (range 15) 19926 | -4/Extension | Build established: Scavenger-Tank 20054 | -4/Extension | Entered Cetus 20054 | -4/Cetus | Accompanied by 3 allies 20075 | -4/Cetus | Spotted Cetus Guard 20075 | -4/Cetus | Spotted Cetus Guard 20077 | -4/Cetus | Spotted Cetus Guard 20077 | -4/Cetus | Spotted Cetus Guard 20114 | -4/Cetus | Destroyed Cetus Guard 20129 | -4/Cetus | Destroyed Cetus Guard 20135 | -4/Cetus | Lost 3 allies 20137 | -4/Cetus | Destroyed Cetus Guard 20140 | -4/Cetus | Destroyed Cetus Guard 20170 | -4/Cetus | Lost 12 parts (2p6n2u2w) 20419 | -4/Cetus | Discovered new exit (range 16) 20443 | -4/Cetus | Entered Archives 20464 | -4/Archives | Met Zhirov 20470 | -4/Archives | Reinforcements dispatched to Archives 20485 | -4/Archives | Read partially decrypted archive contents 20515 | -4/Archives | Reinforcements dispatched to Archives 20517 | -4/Archives | Zhirov warped through subspace 20526 | -4/Archives | Discovered new exit (range 15) 20535 | -4/Archives | Zhirov detonated Archives 20551 | -4/Archives | System corruption reached 10% 20555 | -4/Archives | Entered Hub_04(d) 20566 | -4/Hub_04(d) | Lost 3 parts (1n2w) 21108 | -4/Hub_04(d) | Entered Research 21108 | -3/Research | Evolved 2 slots: Utility x2 21109 | -3/Research | Identified exit to Quarantine 21109 | -3/Research | Identified exit to Research 21222 | -3/Research | Found Prototype Device 21229 | -3/Research | Identified Exp. Shield Generator 22066 | -3/Research | Identified Transdimensional Reconstructor 22066 | -3/Research | Warped through subspace 22188 | -3/Research | Lost 4 parts (1p1n2w) 22737 | -3/Research | Found Prototype Device 22747 | -3/Research | Identified Adv. Kinecellerator 22898 | -3/Research | Lost 5 parts (3p1n1w) 23628 | -3/Research | System corruption reached 10% 23659 | -3/Research | System corruption reached 30% 23664 | -3/Research | Entered another Research area 23664 | -2/Research | Evolved 2 slots: Power x1, Utility x1 24225 | -2/Research | Lost 3 parts (3u) 24410 | -2/Research | Lost 3 parts (1p1n1u) 24546 | -2/Research | System corruption reached 10% 24548 | -2/Research | Released all parts (13) 24556 | -2/Research | Core integrity fell below 50% 24578 | -2/Research | Lost 8 parts (1p3n4u) 24636 | -2/Research | Discovered new exit (range 15) 24646 | -2/Research | Entered Access 24646 | -1/Access | Evolved 2 slots: Propulsion x1, Utility x1 24858 | -1/Access | Build established: Mutant 24971 | -1/Access | Remotely autohacked Sealed Barrier 24974 | -1/Access | Discovered new exit (range 6) 24979 | *** | Escaped! Last Messages --------------- 24938_ Slug penetrates Door. 24938_ Penetrated by Slug. 24938_ Connecting with Terminal... 24938_ ALERT: Suspicious activity at Terminal A016. Dispatching Investigation squad. 24939_ Penetrated by Slug. 24939_ Slug penetrates Wall. 24955_ Connecting with Terminal... >>Index(Terminals) Found 18 terminals. Downloaded coordinate data. 24955_ ALERT: Suspicious activity at Terminal A011. Dispatching Investigation squad. 24960_ U-05 Engineer builds a Wall. 24960_ Slug penetrates Wall. 24960_ Slug penetrates Door. 24970_ 01-MTF's Autohacker locks onto door control terminal, ETC: 1. 24971_ 01-MTF's Autohacker finishes hacking Sealed Barrier. 24974_ The Access Shell folds into the floor. 24974_ EXIT=FOUND Map ----- +----------------------------------------------------+ | ?????????????????????????????????????????????????? | | ?????????????????????????????????????????????????? | | ?????????????????????????????????????????????????? | | ?????????????????????????????????????????????????? | | ?????????????????????????????????????????????????? | | ?????????????????????????????????????????????????? | | ?????????????????????????????????????????????????? | | ?????????????????????????????????????????????????? | | ?????????????????????????????????????????????????? | | ?????????????????????????????????????????????????? | | ?????????????????????????????????????????????????? | | ?????????????????????????????????????????????????? | | ?????????????????????????????????????????????????? | | ?????????????????????????????????????????????????? | | ?????????????????????BB????BB????????????????????? | | ?????????????????????BB????BB????????????????????? | | ?????????????????????????????????????????????????? | | ?????????????????????????????????????????????????? | | ?????????????????????????????????????????????????? | | ?????????????????????????????????????????????????? | | ???????????????????#""""""""""#??????????????????? | | ???????????????????# #??????????????????? | | ???????????????????# #??????????????????? | | ???????????????????# #??????????????????? | | ???????????????????# "" #??????????????????? | | ???????????????????# "@ #??????????????????? | | ???????????????????# #??????????????????? | | ???????????????????# #??????????????????? | | ???????????????????# #??????????????????? | | ??????????????????## ##?????????????????? | | ??????????????????# #?????????????????? | | ??????????????????##"" ##?????????????????? | | ???????????????????#"" #??????????????????? | | ???????????????????#"" #??????????????????? | | ???????????????????#T #??????????????????? | | ???????????????????#"" #??????????????????? | | ???????????????????#"" #??????????????????? | | ??????????????????##"" #####+##+#?????????? | | ?????????????? h h +?????????? | | ???????????? A #?????????? | | ?????????????#+###################### #?????????? | | ???????????????????????############## #?????????? | | ???????????????????????# # #?????????? | | ???????????????????????# ! + +?????????? | | ???????????????????????# "" # #?????????? | | ???????????????????????# "" # #?????????? | | ???????????????????????# """""" # #?????????? | | ???????????????????????# """""" # #?????????? | | ???????????????????????# "" # #?????????? | | ???????????????????????# "" # #?????????? | +----------------------------------------------------+ Best States ------------- Heat Dissipation 87 Energy Generation 69 Energy Capacity 1920 Matter Stores 399 Matter Capacity 450 Sight Range 16 Robot Scan Range 16 Terrain Scan Density 210 ECM Strength 2 Jamming Range 14 Corruption Block 14 Armor Coverage 900 Resistance: EM 20 Power Shielding 90 Melee Speed Boost 30 Evasion (%) 80 Melee Accuracy 12 Target Analysis 8 Recoil Reduction 6 Particle Charging 30 Offensive Hacking 10 Defensive Hacking 24 Item Schematics ----------------- Gauss Rifle | -7/Recycling | Hacked Cmb. Gravmag System | -5/Factory | Hacked Cld. Airjet | -5/Factory | Scanalyzed Assault Drone Bay | -5/Zhirov | Free Exp. Heat Sink | -5/Zhirov | Free Exp. Optical Array | -5/Zhirov | Free Imp. Arc Thrower | -5/Zhirov | Free Nanoactuators | -4/Factory | Hacked Cld. Gravmag System | -4/Factory | Scanalyzed Robot Schematics ------------------ None Fabricated ------------ Nanoactuators | x2 | -4/Factory Repaired ---------- Nothing Alien Tech Used ----------------- Integrated Reactor Transdimensional Reconstructor Achievements -------------- None Challenges ------------ None Game ------ Seed CompactScrapCompressor Manual? 0 Play Time 05:41:11 Cumulative 254.7 hours Start 2025.08.10 @ 21:25:13 End 2025.08.11 @ 19:31:58 Sessions 7 Manual Loads 0 Difficulty Rogue Special Mode None Game No. 121 Rogue 100 Adventurer 21 Explorer 0 Win Type 0 Total 13 Types 9/0/3/1/0/0/0/0/0/0 Lore% 48 Gallery% 65 Achievement% 61 Wizard Run 0 Options --------- Layout 1 ASCII 0 Keyboard 0 Movement Arrows Keybinds 0 Fullscreen 2 Font 32/SmallcapsGlow Map View 77x35 Zoom Use 0% Tactical HUD 1 Map Filters NONE Filters NONE Steam 1 RUN: a5c72941-4fb9-4608-8866-b8512026ca88